fUSD/lending_fUSD_20250306
["ID","MTS","AMOUNT","RATE_DAILY","PERIOD"]
[355519129,1741233037505,-500.0,0.00011499,2]
[355519130,1741233037516,-500.0,0.00011499,2]
[355519131,1741233037525,-500.0,0.00011499,2]
[355519132,1741233037535,-500.0,0.00011499,2]
[355519133,1741233037544,-500.0,0.00011499,2]
[355519134,1741233037554,-500.0,0.00011499,2]
[355519135,1741233037563,-518.9,0.00011499,2]
[355519136,1741233037573,-697.00780972,0.00011499,3]
[355519137,1741233037584,-60582.46845572,0.00011499,2]
[355519138,1741233037595,-773.97421782,0.00011499,2]
[355519139,1741233037607,-34803.27718452,0.00011499,2]
[355519140,1741233037646,-401.616215,0.00011499,2]
[355519141,1741233037658,-1329.14655895,0.00011499,2]
[355519142,1741233037669,-8155.7,0.00011499,2]
[355519143,1741233037680,-344.12974036,0.00011499,2]
[355519144,1741233037693,-358.1318956,0.00011499,2]
[355519183,1741233040335,-343.64999999,0.00011497,2]
[355519246,1741233042620,-313.38000001,0.00011497,2]
[355519247,1741233042629,-826.62,0.00011497,2]
[355519248,1741233042639,-631.92,0.00011497,2]
[355519249,1741233042649,-500.0,0.00011497,2]
[355519250,1741233042660,-500.0,0.00011498,2]
[355519251,1741233042670,-500.0,0.00011498,2]
[355519252,1741233042679,-500.0,0.00011498,2]
[355519253,1741233042688,-176924.62749225,0.00011499,2]
[355519254,1741233042730,-500.0,0.00011499,2]
[355519255,1741233042787,-15196.0458,0.00011499,2]
[355519258,1741233045875,-2292.72086,0.000114,2]
[355519259,1741233045904,-110.46054,0.000114,2]
[355519260,1741233045913,-409.99746274,0.00011498,2]
[355519262,1741233045974,186.16,8.771e-05,2]
[355519360,1741233830970,-751.26786659,0.00010362,2]
[355519361,1741233830994,-643.41,0.00010423,2]
[355519362,1741233831017,-2000.0,0.00010446,2]
[355519363,1741233831042,-171.63,0.00010462,2]
[355519364,1741233831067,-259.7,0.0001047,2]
[355519365,1741233831091,-1000.0,0.00010476,2]
[355519366,1741233831114,-855.71,0.00010476,2]
[355519367,1741233831137,-5318.28213341,0.000106,2]
[355519368,1741234022658,-757.59,0.0001041,2]
[355519369,1741234022682,-244.57,0.00010437,2]
[355519370,1741234022709,-768.86786659,0.000106,2]
[355519371,1741234022736,-150.0,0.00010959,2]
[355519372,1741234022762,-550.0,0.00011,2]
[355519373,1741234022786,-186.16,0.00011034,2]
[355519374,1741234022808,-433.55023486,0.00011037,2]
[355519375,1741234022833,-501.0,0.0001126,2]
[355519376,1741234022856,-413.3952047,0.00011331,2]
[355519377,1741234022879,-1196.21009,0.0001138,2]
[355519378,1741234022903,-307.14800247,0.00011389,2]
[355519379,1741234022926,-3140.06107495,0.0001139,2]
[355519380,1741234022950,-501.44752643,0.00011396,2]
[355519381,1741234062692,-1446.47,0.00010559,2]
[355519382,1741234062718,-6910.91987259,0.00011396,2]
[355519383,1741234062742,-617.38464267,0.00011396,2]
[355519384,1741234062766,-7412.36739895,0.00011396,2]
[355519385,1741234062789,-7412.36739895,0.00011397,2]
[355519386,1741234062812,-880.5232,0.00011397,2]
[355519387,1741234062835,-150.0,0.00011397,2]
[355519388,1741234062859,-7412.36739895,0.00011397,2]
[355519389,1741234062884,-7412.36739895,0.00011398,2]
[355519390,1741234062907,-1000.0,0.00011398,2]
[355519391,1741234062929,-2555.7141,0.00011398,2]
[355519392,1741234062953,-7412.36739895,0.00011398,2]
[355519393,1741234062976,-7412.36739895,0.00011399,2]
[355519394,1741234062999,-7412.36739895,0.00011399,2]
[355519395,1741234063022,-7412.36739895,0.000114,2]
[355519396,1741234063044,-1239.3771,0.000114,2]
[355519397,1741234063067,-169.9802513,0.000114,2]
[355519398,1741234063091,-7412.36739895,0.000114,2]
[355519399,1741234063114,-6304.4910716,0.000114,2]
[355519400,1741234063137,-13.83317129,0.000114,2]
[355519401,1741234075381,13565.46366758,0.0001,2]
[355519405,1741234231736,-314.92,0.000112,2]
[355519406,1741234231746,-200.0,0.00011343,2]
[355519407,1741234231755,-3633.28000002,0.00011397,2]
[355519408,1741234232004,-1077.7325252,0.00011397,2]
[355519409,1741234232014,-4711.01252521,0.00011397,2]
[355519410,1741234232023,-4711.01252521,0.00011398,2]
[355519411,1741234232033,-4711.01252521,0.00011398,2]
[355519412,1741234232042,-4711.01252521,0.00011398,2]
[355519413,1741234232052,-4711.01252521,0.00011399,2]
[355519414,1741234232061,-183.43493382,0.00011399,2]
[355519415,1741234232070,-4711.01252521,0.00011399,2]
[355519416,1741234232079,-4711.01252521,0.00011399,2]
[355519417,1741234232089,-4711.01252521,0.000114,2]
[355519418,1741234232098,-4711.01252521,0.000114,2]
[355519419,1741234232108,-2014.55104616,0.000114,2]
[355519420,1741234232117,-166.0,0.000114,3]
[355519421,1741234232127,-200.13534487,0.00011441,2]
[355519422,1741234232136,-150.0,0.00011472,2]
[355519423,1741234232146,-370.68832049,0.00011473,2]
[355519424,1741234232155,-161.1241016,0.00011473,2]
[355519425,1741234232164,-221.18225917,0.00011473,2]
[355519426,1741234232174,-198.28266086,0.00011473,2]
[355519427,1741234232183,-163.07299052,0.00011473,2]
[355519428,1741234232193,-308.27581462,0.00011473,2]
[355519429,1741234232202,-162.0242575,0.00011473,2]
[355519430,1741234232212,-475.13367077,0.00011473,2]
[355519431,1741234232222,-151.11014394,0.00011473,2]
[355519432,1741234232234,-153.180855,0.00011473,2]
[355519433,1741234232243,-619.85254993,0.00011473,2]
[355519434,1741234232253,-154.32886817,0.00011473,2]
[355519435,1741234232262,-151.98560769,0.00011473,2]
[355519436,1741234232271,-1000.0,0.00011476,2]
[355519437,1741234232281,-37268.3309999,0.00011477,2]
[355519438,1741234232291,-14724.0,0.00011479,2]
[355519439,1741234232300,-451.0,0.00011479,2]
[355519440,1741234232310,-484.888,0.0001148,2]
[355519441,1741234232319,-1113.0,0.00011486,2]
[355519442,1741234232329,-204.58912485,0.0001149,2]
[355519443,1741234232338,-204.58912485,0.0001149,2]
[355519444,1741234232348,-6801.97625986,0.00011493,2]
[355519445,1741234232358,-500.0,0.00011495,2]
[355519446,1741234232367,-260.109437,0.00011495,2]
[355519447,1741234232376,-500.73503477,0.00011495,2]
[355519448,1741234232386,-500.0,0.00011495,2]
[355519449,1741234232395,-269.43328982,0.00011495,2]
[355519450,1741234232406,-500.0,0.00011495,2]
[355519451,1741234232417,-855.19,0.00011495,2]
[355519452,1741234232427,-500.0,0.00011495,2]
[355519453,1741234232436,-566.30003071,0.00011496,2]
[355519454,1741234232447,-500.0,0.00011496,2]
[355519455,1741234232456,-500.0,0.00011496,2]
[355519456,1741234232466,-510.89402642,0.00011496,2]
[355519457,1741234232475,-509.57703101,0.00011496,2]
[355519458,1741234232487,-505.78646331,0.00011496,2]
[355519459,1741234232497,-511.15024803,0.00011496,2]
[355519460,1741234232507,-613.89202734,0.00011496,2]
[355519461,1741234232517,-508.83694717,0.00011496,2]
[355519462,1741234232527,-500.0,0.00011496,2]
[355519463,1741234232537,-500.0,0.00011496,2]
[355519464,1741234232546,-386.80144815,0.00011496,2]
[355519465,1741234232555,-500.0,0.00011496,2]
[355519466,1741234232565,-731.76,0.00011496,2]
[355519467,1741234232575,-547.52727735,0.00011496,2]
[355519468,1741234232584,-500.0,0.00011496,2]
[355519469,1741234232594,-500.0,0.00011496,2]
[355519470,1741234232604,-591.4,0.00011496,2]
[355519471,1741234232613,-500.0,0.00011496,2]
[355519472,1741234232623,-500.0,0.00011496,2]
[355519473,1741234232632,-500.0,0.00011496,2]
[355519474,1741234232860,-512.44013989,0.00011496,2]
[355519475,1741234232871,-500.0,0.00011496,2]
[355519476,1741234232881,-500.0,0.00011496,2]
[355519477,1741234232890,-500.0,0.00011496,2]
[355519478,1741234232900,-500.0,0.00011496,2]
[355519479,1741234232909,-500.0,0.00011496,2]
[355519480,1741234232919,-516.32,0.00011496,2]
[355519481,1741234232929,-500.0,0.00011496,2]
[355519482,1741234232938,-517.93129482,0.00011496,2]
[355519483,1741234232948,-500.0,0.00011496,2]
[355519484,1741234232958,-517.12685697,0.00011496,2]
[355519485,1741234232968,-500.0,0.00011496,2]
[355519486,1741234232977,-518.50913905,0.00011496,2]
[355519487,1741234232990,-508.17706438,0.00011496,2]
[355519488,1741234233000,-500.0,0.00011496,2]
[355519489,1741234233010,-510.12762573,0.00011496,2]
[355519490,1741234233021,-500.0,0.00011496,2]
[355519491,1741234233031,-500.0,0.00011496,2]
[355519492,1741234233040,-500.0,0.00011496,2]
[355519493,1741234233051,-508.65630701,0.00011496,2]
[355519494,1741234233061,-500.0,0.00011496,2]
[355519495,1741234233070,-500.0,0.00011496,2]
[355519496,1741234233081,-500.0,0.00011496,2]
[355519497,1741234233090,-500.0,0.00011496,2]
[355519498,1741234233100,-500.0,0.00011496,2]
[355519499,1741234233110,-500.0,0.00011496,2]
[355519500,1741234233120,-500.0,0.00011496,2]
[355519501,1741234233130,-509.21560326,0.00011496,2]
[355519502,1741234233140,-517.20041516,0.00011496,2]
[355519503,1741234233149,-500.0,0.00011496,2]
[355519504,1741234233159,-278.513792,0.00011496,2]
[355519505,1741234233169,-500.0,0.00011496,2]
[355519506,1741234233178,-500.0,0.00011496,2]
[355519507,1741234233187,-626.76,0.00011496,2]
[355519508,1741234233196,-511.74121838,0.00011496,2]
[355519509,1741234233205,-500.0,0.00011496,2]
[355519510,1741234233215,-518.46142359,0.00011496,2]
[355519511,1741234233224,-500.0,0.00011496,2]
[355519512,1741234233236,-500.0,0.00011496,2]
[355519513,1741234233245,-520.86638427,0.00011496,2]
[355519514,1741234233254,-500.0,0.00011496,2]
[355519515,1741234233264,-1231.175683,0.00011496,2]
[355519516,1741234233274,-500.0,0.00011496,2]
[355519517,1741234233283,-500.0,0.00011496,2]
[355519518,1741234233292,-500.0,0.00011496,2]
[355519519,1741234233301,-513.51651621,0.00011496,2]
[355519520,1741234233309,-516.91221121,0.00011496,2]
[355519521,1741234233318,-500.0,0.00011496,2]
[355519522,1741234233327,-1914.023651,0.00011496,2]
[355519523,1741234233335,-465.58195768,0.00011496,2]
[355519524,1741234233345,-500.0,0.00011496,2]
[355519525,1741234233354,-162.746381,0.00011496,2]
[355519526,1741234233362,-493.71203188,0.00011496,2]
[355519527,1741234233371,-154.096799,0.00011496,2]
[355519528,1741234233380,-500.0,0.00011496,2]
[355519529,1741234233390,-500.0,0.00011496,2]
[355519530,1741234233400,-509.53920308,0.00011496,2]
[355519531,1741234233412,-548.39325369,0.00011496,2]
[355519532,1741234233421,-500.0,0.00011496,2]
[355519533,1741234233431,-503.59832488,0.00011496,2]
[355519534,1741234233440,-500.0,0.00011496,2]
[355519535,1741234233451,-500.0,0.00011496,2]
[355519536,1741234233461,-500.0,0.00011496,2]
[355519537,1741234233470,-611.3,0.00011496,2]
[355519538,1741234233480,-679.77,0.00011496,2]
[355519539,1741234233491,-512.76819583,0.00011496,2]
[355519540,1741234233500,-508.62680683,0.00011496,2]
[355519541,1741234233510,-500.0,0.00011496,2]
[355519542,1741234233519,-500.0,0.00011496,2]
[355519543,1741234233529,-500.0,0.00011496,2]
[355519544,1741234233538,-500.0,0.00011496,2]
[355519545,1741234233547,-516.63645351,0.00011496,2]
[355519546,1741234233557,-500.0,0.00011496,2]
[355519547,1741234233567,-500.0,0.00011496,2]
[355519548,1741234233576,-517.25869775,0.00011496,2]
[355519549,1741234233585,-230.02028602,0.00011496,2]
[355519550,1741234233595,-645.06,0.00011496,2]
[355519551,1741234233605,-508.28,0.00011496,2]
[355519552,1741234233614,-539.6,0.00011496,2]
[355519553,1741234233624,-614.68388408,0.00011496,2]
[355519554,1741234233633,-519.00581418,0.00011496,2]
[355519555,1741234233643,-511.28287588,0.00011496,2]
[355519556,1741234233652,-500.0,0.00011496,2]
[355519557,1741234233662,-500.0,0.00011496,2]
[355519558,1741234233672,-500.0,0.00011496,2]
[355519559,1741234233680,-500.0,0.00011496,2]
[355519560,1741234233689,-352.72663886,0.00011496,2]
[355519561,1741234233698,-500.0,0.00011496,2]
[355519562,1741234233707,-500.0,0.00011496,2]
[355519563,1741234233717,-500.0,0.00011496,2]
[355519564,1741234233726,-500.0,0.00011496,2]
[355519565,1741234233737,-513.12508651,0.00011496,2]
[355519566,1741234233747,-500.0,0.00011496,2]
[355519567,1741234233757,-514.06985499,0.00011496,2]
[355519568,1741234233767,-500.0,0.00011496,2]
[355519569,1741234233776,-507.40511328,0.00011496,2]
[355519570,1741234233786,-500.0,0.00011496,2]
[355519571,1741234233795,-500.0,0.00011496,2]
[355519572,1741234233805,-509.71941374,0.00011496,2]
[355519573,1741234233816,-510.64,0.00011496,2]
[355519574,1741234233825,-500.0,0.00011496,2]
[355519575,1741234233835,-502.65819524,0.00011496,2]
[355519576,1741234233845,-500.0,0.00011496,2]
[355519577,1741234233855,-500.0,0.00011496,2]
[355519578,1741234233864,-500.0,0.00011496,2]
[355519579,1741234233874,-500.0,0.00011496,2]
[355519580,1741234233883,-604.72,0.00011496,2]
[355519581,1741234233892,-509.19198935,0.00011496,2]
[355519582,1741234233902,-500.0,0.00011496,2]
[355519583,1741234233912,-513.23617015,0.00011496,2]
[355519584,1741234233921,-613.26,0.00011496,2]
[355519585,1741234233931,-515.77220949,0.00011496,2]
[355519586,1741234233941,-511.58844397,0.00011496,2]
[355519587,1741234233950,-508.90362429,0.00011496,2]
[355519588,1741234233960,-534.02,0.00011496,2]
[355519589,1741234233970,-500.0,0.00011496,2]
[355519590,1741234233980,-500.0,0.00011496,2]
[355519591,1741234233990,-510.72995628,0.00011496,2]
[355519592,1741234234000,-500.0,0.00011496,2]
[355519593,1741234234010,-513.91256057,0.00011496,2]
[355519594,1741234234019,-500.0,0.00011496,2]
[355519595,1741234234029,-500.0,0.00011496,2]
[355519596,1741234234039,-500.0,0.00011496,2]
[355519597,1741234234049,-500.0,0.00011496,2]
[355519598,1741234234059,-500.0,0.00011496,2]
[355519599,1741234234069,-500.0,0.00011496,2]
[355519600,1741234234079,-500.0,0.00011496,2]
[355519601,1741234234089,-579.24,0.00011496,2]
[355519602,1741234234098,-1107.01,0.00011496,2]
[355519603,1741234234109,-500.0,0.00011496,2]
[355519604,1741234234119,-587.01,0.00011496,2]
[355519605,1741234234129,-624.39446046,0.00011496,2]
[355519606,1741234234139,-500.0,0.00011496,2]
[355519607,1741234234149,-500.0,0.00011496,2]
[355519608,1741234234159,-505.43652913,0.00011496,2]
[355519609,1741234234169,-1399.43,0.00011496,2]
[355519610,1741234234179,-667.0,0.00011496,2]
[355519611,1741234234189,-500.0,0.00011496,2]
[355519612,1741234234198,-720.18,0.00011496,2]
[355519613,1741234234208,-500.0,0.00011496,2]
[355519614,1741234234218,-506.74990503,0.00011496,2]
[355519615,1741234234227,-1222.84,0.00011496,2]
[355519616,1741234234237,-859.47,0.00011496,2]
[355519617,1741234234246,-500.0,0.00011496,2]
[355519618,1741234234255,-500.0,0.00011496,2]
[355519619,1741234234264,-500.0,0.00011496,2]
[355519620,1741234234274,-646.24,0.00011496,2]
[355519621,1741234234283,-500.0,0.00011496,2]
[355519622,1741234234293,-2134.15,0.00011496,2]
[355519623,1741234234303,-325.5,0.00011496,2]
[355519624,1741234234312,-935.19,0.00011496,2]
[355519625,1741234234321,-1086.58,0.00011496,2]
[355519626,1741234234331,-2293.49,0.00011496,2]
[355519627,1741234234340,-508.31,0.00011496,2]
[355519628,1741234234350,-500.0,0.00011496,2]
[355519629,1741234234360,-718.3,0.00011496,2]
[355519630,1741234234369,-924.92,0.00011496,2]
[355519631,1741234234379,-2349.19,0.00011496,2]
[355519632,1741234234389,-611.17,0.00011496,2]
[355519633,1741234234399,-500.0,0.00011496,2]
[355519634,1741234234409,-606.77,0.00011496,2]
[355519635,1741234234420,-500.0,0.00011496,2]
[355519636,1741234234429,-788.42,0.00011496,2]
[355519637,1741234234438,-500.0,0.00011496,2]
[355519638,1741234234450,-500.0,0.00011496,2]
[355519639,1741234234459,-500.0,0.00011496,2]
[355519640,1741234234469,-682.41,0.00011496,2]
[355519641,1741234234480,-500.0,0.00011496,2]
[355519642,1741234234491,-869.03,0.00011496,2]
[355519643,1741234234501,-500.0,0.00011496,2]
[355519644,1741234234512,-956.62,0.00011496,2]
[355519645,1741234234522,-803.59,0.00011496,2]
[355519646,1741234234532,-500.0,0.00011496,2]
[355519647,1741234234542,-500.0,0.00011496,2]
[355519648,1741234234553,-610.87,0.00011496,2]
[355519649,1741234234563,-1158.75,0.00011496,2]
[355519650,1741234234574,-687.48,0.00011496,2]
[355519651,1741234234584,-500.0,0.00011496,2]
[355519652,1741234234594,-515.30668532,0.00011496,2]
[355519653,1741234234604,-672.17,0.00011496,2]
[355519654,1741234234614,-1199.15,0.00011496,2]
[355519655,1741234234624,-871.83,0.00011496,2]
[355519656,1741234234633,-500.0,0.00011496,2]
[355519657,1741234234643,-500.0,0.00011496,2]
[355519658,1741234234653,-413.25779719,0.00011496,2]
[355519659,1741234234663,-2643.23,0.00011496,2]
[355519660,1741234234672,-613.25,0.00011496,2]
[355519661,1741234234682,-599.5,0.00011496,2]
[355519662,1741234234691,-491.45783294,0.00011496,2]
[355519663,1741234234701,-506.66529349,0.00011496,2]
[355519664,1741234234711,-500.0,0.00011496,2]
[355519665,1741234234720,-1413.73,0.00011496,2]
[355519666,1741234234733,-500.0,0.00011496,2]
[355519667,1741234234742,-528.26,0.00011496,2]
[355519668,1741234234752,-218.50756111,0.00011496,2]
[355519669,1741234234762,-500.0,0.00011496,2]
[355519670,1741234234772,-500.0,0.00011496,2]
[355519671,1741234234782,-615.69,0.00011496,2]
[355519672,1741234234792,-1223.81,0.00011496,2]
[355519673,1741234234802,-500.0,0.00011496,2]
[355519674,1741234234812,-509.29140088,0.00011496,2]
[355519675,1741234234821,-862.11,0.00011496,2]
[355519676,1741234234831,-578.51,0.00011496,2]
[355519677,1741234234840,-500.0,0.00011496,2]
[355519678,1741234234849,-1000.53,0.00011496,2]
[355519679,1741234234858,-502.52,0.00011496,2]
[355519680,1741234234868,-726.08,0.00011496,2]
[355519681,1741234234877,-3357.35,0.00011496,2]
[355519682,1741234234887,-4898.79,0.00011496,2]
[355519683,1741234234896,-500.0,0.00011496,2]
[355519684,1741234234906,-500.0,0.00011496,2]
[355519685,1741234234915,-500.0,0.00011496,2]
[355519686,1741234234925,-691.11,0.00011496,2]
[355519687,1741234234935,-4176.86,0.00011496,2]
[355519688,1741234234945,-535.56,0.00011496,2]
[355519689,1741234234955,-951.92,0.00011496,2]
[355519690,1741234234965,-606.94,0.00011496,2]
[355519691,1741234234974,-644.04,0.00011496,2]
[355519692,1741234234985,-653.39,0.00011496,2]
[355519693,1741234234995,-643.17,0.00011496,2]
[355519694,1741234235004,-583.39,0.00011496,2]
[355519695,1741234235013,-763.1,0.00011496,2]
[355519696,1741234235023,-500.0,0.00011496,2]
[355519697,1741234235032,-671.25,0.00011496,2]
[355519698,1741234235042,-500.0,0.00011496,2]
[355519699,1741234235052,-500.0,0.00011496,2]
[355519700,1741234235061,-500.0,0.00011496,2]
[355519701,1741234235070,-500.0,0.00011496,2]
[355519702,1741234235080,-500.0,0.00011496,2]
[355519703,1741234235090,-3660.21,0.00011496,2]
[355519704,1741234235099,-500.0,0.00011496,2]
[355519705,1741234235110,-500.0,0.00011496,2]
[355519706,1741234235119,-500.0,0.00011496,2]
[355519707,1741234235128,-537.08265954,0.00011496,2]
[355519708,1741234235138,-500.0,0.00011496,2]
[355519709,1741234235147,-500.0,0.00011496,2]
[355519710,1741234235156,-299.1,0.00011496,2]
[355519711,1741234235166,-500.0,0.00011496,2]
[355519712,1741234235175,-529.08,0.00011496,2]
[355519713,1741234235185,-531.02,0.00011496,2]
[355519714,1741234235194,-500.0,0.00011497,2]
[355519715,1741234235204,-525.23831059,0.00011497,2]
[355519716,1741234235214,-500.0,0.00011497,2]
[355519717,1741234235223,-500.0,0.00011497,2]
[355519718,1741234235232,-500.0,0.00011497,2]
[355519719,1741234235242,-500.0,0.00011497,2]
[355519720,1741234235251,-505.80966392,0.00011497,2]
[355519721,1741234235260,-500.0,0.00011497,2]
[355519722,1741234235271,-500.0,0.00011497,2]
[355519723,1741234235281,-507.36537169,0.00011497,2]
[355519724,1741234235290,-500.0,0.00011497,2]
[355519725,1741234235300,-500.0,0.00011497,2]
[355519726,1741234235310,-500.0,0.00011497,2]
[355519727,1741234235320,-500.0,0.00011497,2]
[355519728,1741234235329,-500.0,0.00011497,2]
[355519729,1741234235339,-500.0,0.00011497,2]
[355519730,1741234235348,-500.0,0.00011497,2]
[355519731,1741234235357,-506.77354913,0.00011497,7]
[355519732,1741234235367,-500.0,0.00011497,2]
[355519733,1741234235377,-500.0,0.00011497,2]
[355519734,1741234235387,-500.0,0.00011497,2]
[355519735,1741234235397,-500.0,0.00011497,2]
[355519736,1741234235409,-500.0,0.00011497,2]
[355519737,1741234235420,-500.0,0.00011497,2]
[355519738,1741234235430,-566.61011552,0.00011497,2]
[355519739,1741234235439,-500.0,0.00011497,2]
[355519740,1741234235448,-500.0,0.00011497,2]
[355519741,1741234235459,-502.98382929,0.00011497,2]
[355519742,1741234235468,-500.0,0.00011497,2]
[355519743,1741234235478,-507.98130892,0.00011497,2]
[355519744,1741234235489,-500.0,0.00011497,2]
[355519745,1741234235498,-504.1345441,0.00011497,2]
[355519746,1741234235508,-500.0,0.00011497,2]
[355519747,1741234235519,-505.0765189,0.00011497,2]
[355519748,1741234235532,-500.0,0.00011497,2]
[355519749,1741234235542,-500.0,0.00011497,2]
[355519750,1741234235551,-506.20022537,0.00011497,2]
[355519751,1741234235561,-504.36220022,0.00011497,2]
[355519752,1741234235571,-618.73,0.00011497,2]
[355519753,1741234235581,-500.0,0.00011497,2]
[355519754,1741234235590,-500.0,0.00011497,2]
[355519755,1741234235600,-500.0,0.00011497,2]
[355519756,1741234235609,-500.0,0.00011497,2]
[355519757,1741234235619,-500.0,0.00011497,2]
[355519758,1741234235628,-500.0,0.00011497,2]
[355519759,1741234235637,-501.9308156,0.00011497,2]
[355519760,1741234235647,-504.26122669,0.00011497,2]
[355519761,1741234235657,-500.0,0.00011497,2]
[355519762,1741234235667,-500.0,0.00011497,2]
[355519763,1741234235676,-548.71,0.00011497,2]
[355519764,1741234235686,-504.54045561,0.00011497,2]
[355519765,1741234235695,-500.0,0.00011497,2]
[355519766,1741234235705,-502.86064692,0.00011497,2]
[355519767,1741234235714,-511.09008896,0.00011497,2]
[355519768,1741234235724,-500.0,0.00011497,2]
[355519769,1741234235734,-513.93379424,0.00011497,2]
[355519770,1741234235744,-503.02291727,0.00011497,2]
[355519771,1741234235754,-500.0,0.00011497,2]
[355519772,1741234235763,-516.67067965,0.00011497,2]
[355519773,1741234235773,-504.71738795,0.00011497,2]
[355519774,1741234235782,-509.75,0.00011497,2]
[355519775,1741234235791,-500.0,0.00011497,2]
[355519776,1741234235800,-500.0,0.00011497,2]
[355519777,1741234235808,-500.0,0.00011497,2]
[355519778,1741234235817,-500.0,0.00011497,2]
[355519779,1741234235826,-503.77534597,0.00011497,2]
[355519780,1741234235835,-500.0,0.00011497,2]
[355519781,1741234235845,-500.0,0.00011497,2]
[355519782,1741234235854,-504.59403996,0.00011497,2]
[355519783,1741234235864,-515.72931435,0.00011497,2]
[355519784,1741234235873,-500.0,0.00011497,2]
[355519785,1741234235883,-432.92912065,0.00011497,2]
[355519786,1741234235892,-500.0,0.00011497,2]
[355519787,1741234235901,-500.0,0.00011497,2]
[355519788,1741234235911,-500.0,0.00011497,2]
[355519789,1741234235920,-500.0,0.00011497,2]
[355519790,1741234235929,-500.0,0.00011497,2]
[355519791,1741234235939,-500.0,0.00011497,2]
[355519792,1741234235949,-500.0,0.00011497,2]
[355519793,1741234235959,-500.0,0.00011497,2]
[355519794,1741234235968,-645.84,0.00011497,2]
[355519795,1741234235978,-503.17065149,0.00011497,2]
[355519796,1741234235989,-500.0,0.00011497,2]
[355519797,1741234235998,-500.0,0.00011497,2]
[355519798,1741234236007,-500.0,0.00011497,2]
[355519799,1741234236016,-492.36951944,0.00011497,2]
[355519800,1741234236026,-500.0,0.00011497,2]
[355519801,1741234236035,-503.83713583,0.00011497,2]
[355519802,1741234236045,-500.0,0.00011497,2]
[355519803,1741234236054,-500.0,0.00011497,2]
[355519804,1741234236064,-500.0,0.00011497,2]
[355519805,1741234236073,-500.0,0.00011497,2]
[355519806,1741234236082,-500.0,0.00011497,2]
[355519807,1741234236091,-512.59122415,0.00011497,2]
[355519808,1741234236101,-509.70007808,0.00011497,2]
[355519809,1741234236110,-500.0,0.00011497,2]
[355519810,1741234236120,-500.0,0.00011497,2]
[355519811,1741234236129,-500.0,0.00011497,2]
[355519812,1741234236138,-500.0,0.00011497,2]
[355519813,1741234236147,-500.0,0.00011497,2]
[355519814,1741234236156,-500.0,0.00011497,2]
[355519815,1741234236166,-500.0,0.00011497,2]
[355519816,1741234236175,-500.0,0.00011497,2]
[355519817,1741234236184,-500.0,0.00011497,2]
[355519818,1741234236193,-500.0,0.00011497,2]
[355519819,1741234236202,-500.0,0.00011497,2]
[355519820,1741234236212,-500.0,0.00011497,2]
[355519821,1741234236221,-500.0,0.00011497,2]
[355519822,1741234236230,-500.0,0.00011497,2]
[355519823,1741234236239,-500.0,0.00011497,2]
[355519824,1741234236249,-500.0,0.00011497,2]
[355519825,1741234236258,-514.07645639,0.00011497,2]
[355519826,1741234236267,-500.0,0.00011497,2]
[355519827,1741234236276,-500.0,0.00011497,2]
[355519828,1741234236285,-502.98576296,0.00011497,2]
[355519829,1741234236295,-500.0,0.00011497,2]
[355519830,1741234236304,-511.5942534,0.00011497,2]
[355519831,1741234236313,-500.0,0.00011497,2]